bitfinex/quotes_BTCUSD_20251219
["timestamp","ask_amount","ask_price","bid_price","bid_amount"]
[1766113778735,0.48066463,86265.0,86264.0,4.3e-06]
[1766113778913,0.52672,86265.0,86264.0,4.3e-06]
[1766113779135,0.52657441,86265.0,86264.0,4.3e-06]
[1766113779259,0.5269394,86265.0,86264.0,4.3e-06]
[1766113779461,1.1373794,86265.0,86264.0,4.3e-06]
[1766113780215,1.18739779,86265.0,86264.0,4.3e-06]
[1766113780416,1.0909794,86265.0,86264.0,4.3e-06]
[1766113780617,1.1432594,86265.0,86264.0,4.3e-06]
[1766113780795,1.099e-05,86265.0,86264.0,4.3e-06]
[1766113781725,0.00588,86270.0,86264.0,4.3e-06]
[1766113781877,0.00588,86270.0,86264.0,0.00011409]
[1766113782077,0.00588,86270.0,86264.0,4.09e-06]
[1766113782312,0.48032,86268.0,86264.0,4.09e-06]
[1766113782512,0.00588,86270.0,86264.0,4.09e-06]
[1766113782513,1.09076,86265.0,86264.0,4.09e-06]
[1766113783904,1.09664,86265.0,86264.0,4.09e-06]
[1766113784338,1.09664,86265.0,86243.0,0.00588]
[1766113784538,0.57028,86260.0,86243.0,0.00036499]
[1766113784836,0.57028,86254.0,86243.0,4.99e-06]
[1766113785036,0.00592,86253.0,86243.0,4.99e-06]
[1766113785219,0.57028,86244.0,86243.0,4.99e-06]
[1766113785536,0.84225408,86244.0,86243.0,4.99e-06]
[1766113786169,0.48325,86244.0,86229.0,0.0001]
[1766113786377,0.01159406,86251.0,86229.0,0.00020988]
[1766113786592,0.0555032,86246.0,86229.0,0.00020988]
[1766113786799,0.47733,86244.0,86229.0,0.00020988]
[1766113787016,0.488925,86244.0,86229.0,0.00020988]
[1766113787372,0.01159339,86256.0,86229.0,0.49135988]
[1766113787599,0.0555032,86250.0,86229.0,0.49135988]
[1766113787803,0.00592,86249.0,86229.0,0.49135988]
[1766113788040,0.00592,86249.0,86229.0,0.5029569]
[1766113788371,0.5762,86249.0,86248.0,2.55e-06]
[1766113788718,1.05353,86249.0,86248.0,2.55e-06]
[1766113789123,0.00592,86249.0,86229.0,0.00020988]
[1766113789363,0.0555032,86237.0,86220.0,0.05]
[1766113789605,0.0555032,86237.0,86220.0,0.0501099]
[1766113789606,0.57028,86228.0,86220.0,0.0501099]
[1766113790035,0.47733,86230.0,86220.0,0.0501099]
[1766113790242,0.57028,86229.0,86210.0,0.01751958]
[1766113790454,0.5762,86229.0,86211.0,0.01159944]
[1766113790664,0.5762,86229.0,86210.0,0.00592]
[1766113790834,0.57028,86227.0,86210.0,0.00592]
[1766113791070,1.04761,86227.0,86210.0,0.00592]
[1766113791274,0.00592,86229.0,86210.0,0.00592]
[1766113791275,0.01751702,86229.0,86210.0,0.00592]
[1766113791449,0.57028,86223.0,86210.0,0.00592]
[1766113791898,0.01159527,86242.0,86212.0,0.01159931]
[1766113792103,0.0555032,86250.0,86210.0,0.00592]
[1766113792104,0.57028,86226.0,86210.0,0.00592]
[1766113792251,0.00592,86235.0,86220.0,1.05823552]
[1766113792450,0.00010947,86237.0,86219.0,0.49115]
[1766113792633,0.00592,86235.0,86219.0,0.50274837]
[1766113792969,0.00010947,86237.0,86219.0,0.49115]
[1766113793119,0.00010947,86237.0,86224.0,0.49115]
[1766113793322,0.57028,86236.0,86220.0,0.00592]
[1766113793521,0.47743947,86237.0,86220.0,0.00592]
[1766113793522,0.57028,86234.0,86220.0,0.00592]
[1766113793775,0.57028,86233.0,86220.0,0.00592]
[1766113794093,0.00010947,86237.0,86209.0,0.00592]
[1766113794094,0.01159689,86230.0,86209.0,0.00592]
[1766113794236,0.001099,86220.0,86209.0,0.00592]
[1766113794620,0.00592,86224.0,86200.0,0.49115]
[1766113794828,0.47733,86212.0,86196.0,0.0004]
[1766113795021,0.01159756,86225.0,86196.0,0.01160146]
[1766113795235,0.00592,86224.0,86202.0,0.49115]
[1766113795479,1.04761,86225.0,86223.0,0.00080005]
[1766113795680,1.04761,86225.0,86223.0,5e-08]
[1766113795857,0.00592,86224.0,86204.0,0.50275038]
[1766113796260,1.04761,86225.0,86206.0,0.01160012]
[1766113796486,0.00592,86224.0,86204.0,0.50275038]
[1766113796684,0.00592,86224.0,86207.0,0.01159998]
[1766113796885,0.00592,86224.0,86207.0,0.24359953]
[1766113797101,0.00592,86224.0,86207.0,0.01159998]
[1766113797327,0.00592,86224.0,86204.0,0.73475628]
[1766113797530,0.5762,86224.0,86204.0,0.49115]
[1766113798123,0.5762,86224.0,86204.0,0.50275038]
[1766113798628,0.00592,86224.0,86205.0,0.01160025]
[1766113798826,0.00592,86224.0,86208.0,0.01159985]
[1766113799397,0.00592,86224.0,86209.0,0.01159971]
[1766113799597,0.00592,86224.0,86205.0,0.50275025]
[1766113799598,0.00010947,86237.0,86224.0,0.0008]
[1766113799801,0.00010947,86237.0,86215.0,0.49115]
[1766113800001,0.57028,86233.0,86210.0,0.01159958]
[1766113800235,0.5387532,86234.0,86200.0,0.04644]
[1766113800236,0.01159756,86225.0,86200.0,0.04644]
[1766113800381,0.0614232,86234.0,86200.0,0.04644]
[1766113800382,0.57028,86221.0,86200.0,0.04644]
[1766113800586,0.00592,86224.0,86208.0,0.01159985]
[1766113800781,0.57028,86230.0,86209.0,0.25751369]
[1766113801037,0.57028,86230.0,86206.0,0.23199726]
[1766113801240,0.01159796,86222.0,86206.0,0.0907]
[1766113801395,0.57028,86220.0,86206.0,0.0907]
[1766113801603,0.57028,86220.0,86204.0,0.00592]
[1766113801958,0.57028,86220.0,86200.0,0.04644]
[1766113802101,0.57028,86207.0,86186.0,0.04644]
[1766113802302,0.000299,86200.0,86186.0,0.05236]
[1766113802504,0.47979,86206.0,86186.0,0.05236]
[1766113802916,0.47979,86206.0,86178.0,0.01160388]
[1766113802917,0.0555032,86195.0,86173.0,0.01752456]
[1766113803163,0.0001,86193.0,86173.0,0.00592]
[1766113803367,0.47387,86192.0,86173.0,0.00602992]
[1766113803538,0.47387,86187.0,86173.0,0.00010992]
[1766113803718,0.47387,86185.0,86163.0,0.0175259]
[1766113803906,0.47387,86185.0,86164.0,0.04680668]
[1766113804105,1.04547,86185.0,86164.0,0.04680668]
[1766113804422,0.5716,86179.0,86164.0,0.04680668]
[1766113804622,0.0001,86193.0,86179.0,0.01240375]
[1766113804866,0.0001,86193.0,86182.0,0.49545]
[1766113805476,0.0001,86193.0,86179.0,0.58878]
[1766113805477,0.0001,86193.0,86176.0,1.05823552]
[1766113805669,0.0001,86193.0,86175.0,0.00592]
[1766113805891,0.0001,86193.0,86168.0,0.04644]
[1766113805892,0.5716,86187.0,86172.0,0.00592]
[1766113806095,0.5716,86185.0,86168.0,0.00592]
[1766113806327,0.0555032,86181.0,86164.0,0.00036668]
[1766113806630,0.47387,86178.0,86164.0,0.00036668]
[1766113806776,0.47387,86178.0,86164.0,0.01197245]
[1766113806980,0.00592,86179.0,86178.0,0.0008]
[1766113807319,0.00592,86191.0,86178.0,0.50705388]
[1766113807481,0.00592,86191.0,86178.0,0.49545]
[1766113807868,0.00592,86191.0,86172.0,0.00592]
[1766113808075,0.01160227,86190.0,86172.0,0.00592]
[1766113808436,1.04547,86189.0,86172.0,0.00592]
[1766113808633,0.47387,86187.0,86172.0,0.00592]
[1766113808933,0.5716,86183.0,86166.0,0.1082255]
[1766113809090,0.00512,86182.0,86171.0,0.01160483]
[1766113809290,0.00512,86182.0,86170.0,1.06984048]
[1766113809497,0.0001,86190.0,86173.0,0.01160456]
[1766113809699,0.00592,86186.0,86174.0,0.01160442]
[1766113810032,0.00592,86186.0,86172.0,0.01160469]
[1766113810273,0.00592,86188.0,86173.0,0.01160456]
[1766113810533,0.00592,86188.0,86174.0,0.01160442]
[1766113810698,0.0001,86187.0,86175.0,0.01160429]
[1766113811360,0.0001,86187.0,86174.0,0.00592]
[1766113813077,0.58465,86187.0,86174.0,0.00592]
[1766113813289,0.0001,86187.0,86174.0,0.00592]
[1766113814454,0.01820368,86192.0,86174.0,0.00592]
[1766113814455,0.01820368,86192.0,86177.0,1.05823552]
[1766113814658,0.01820368,86192.0,86179.0,0.01160375]
[1766113814863,0.00592,86196.0,86183.0,0.01160321]
[1766113815064,0.06710305,86208.0,86183.0,0.01160321]
[1766113815065,0.24356338,86220.0,86191.0,0.0907]
[1766113815276,0.00592,86223.0,86203.0,0.4795]
[1766113815480,0.00592,86223.0,86194.0,1.05823552]
[1766113815481,0.58455,86215.0,86196.0,0.04648]
[1766113815691,0.00592,86220.0,86199.0,0.01160106]
[1766113815917,0.59047,86220.0,86200.0,0.72481564]
[1766113816152,0.59057945,86220.0,86200.0,0.72481564]
[1766113816350,0.58465945,86220.0,86200.0,0.72481564]
[1766113816621,0.00592,86219.0,86200.0,0.72481564]
[1766113816820,0.00592,86218.0,86200.0,0.73641656]
[1766113817055,0.00010945,86220.0,86208.0,0.73641549]
[1766113817187,0.00010945,86220.0,86209.0,0.4795]
[1766113817420,0.00010945,86220.0,86207.0,0.00592]
[1766113817421,0.0555032,86219.0,86207.0,0.00592]
[1766113817598,1.07689,86217.0,86202.0,0.00592]
[1766113818675,0.00592,86216.0,86201.0,0.02454647]
[1766113819699,0.0555032,86206.0,86189.0,0.0907]
[1766113819946,0.49234,86213.0,86189.0,0.0907]
[1766113819947,0.49234,86213.0,86191.0,0.0907]
[1766113820144,0.49234,86213.0,86192.0,0.4795]
[1766113820145,0.0555032,86206.0,86192.0,0.4795]
[1766113820385,0.00592,86208.0,86192.0,0.4795]
[1766113821588,0.0555032,86206.0,86191.0,0.0907]
[1766113821742,0.0555032,86206.0,86187.0,0.0907]
[1766113822371,0.0116024,86189.0,86174.0,0.03049727]
[1766113822549,0.58455,86185.0,86170.0,0.03049727]
[1766113822735,0.0555032,86180.0,86162.0,0.03049727]
[1766113822929,0.0555032,86180.0,86160.0,0.73073564]
[1766113823310,0.0555032,86180.0,86162.0,0.4795]
[1766113823444,0.00592,86181.0,86164.0,0.24372093]
[1766113823650,0.00592,86181.0,86162.0,0.47986668]
[1766113824055,0.00592,86181.0,86162.0,0.49147272]
[1766113824478,0.00592,86181.0,86162.0,0.47986668]
[1766113824656,0.00592,86181.0,86165.0,0.01160564]
[1766113825086,0.00592,86181.0,86162.0,0.47986668]
[1766113825402,0.0555032,86180.0,86162.0,0.47986668]
[1766113826687,0.01160456,86173.0,86163.0,0.00592]
[1766113826920,0.01160456,86173.0,86164.0,0.00592]
[1766113826921,0.58455,86171.0,86164.0,0.00592]
[1766113828026,0.58455,86165.0,86149.0,0.03049727]
[1766113828249,0.58455,86164.0,86154.0,0.00592]
[1766113828470,0.58455,86164.0,86152.0,0.00592]
[1766113829174,0.49234,86165.0,86152.0,0.00592]
[1766113829396,0.58455,86162.0,86143.0,0.0004]
[1766113829620,0.00592,86166.0,86150.0,0.72481564]
[1766113829846,0.00592,86166.0,86151.0,0.00592]
[1766113830301,0.01160483,86171.0,86151.0,0.00592]
[1766113830302,0.00036481,86173.0,86155.0,0.01160698]
[1766113830523,0.00036481,86173.0,86156.0,0.01160685]
[1766113830743,0.00036481,86173.0,86153.0,0.01160725]
[1766113830962,0.58455,86166.0,86143.0,0.03089727]
[1766113831190,0.00036481,86173.0,86157.0,0.01160671]
[1766113831411,0.00036481,86173.0,86166.0,0.001099]
[1766113831607,0.00036481,86173.0,86158.0,0.48542]
[1766113831920,8.1e-07,86173.0,86165.0,0.4795]
[1766113832156,8.1e-07,86173.0,86166.0,0.2496352]
[1766113832350,0.58455081,86173.0,86167.0,0.00592]
[1766113832550,8.1e-07,86173.0,86157.0,0.01160671]
[1766113832712,8.1e-07,86173.0,86158.0,0.00592]
[1766113832911,8.1e-07,86173.0,86152.0,0.03049727]
[1766113833116,0.58455,86166.0,86153.0,0.00592]
[1766113833314,0.0555032,86166.0,86152.0,0.00592]
[1766113833515,0.58455,86160.0,86152.0,0.00592]
[1766113833722,0.58455,86160.0,86152.0,0.005556]
[1766113833908,0.49234,86162.0,86152.0,0.005556]
[1766113834730,0.49234,86162.0,86155.0,0.00025629]
[1766113835317,0.49234,86159.0,86144.0,0.00592]
[1766113835526,0.01820953,86162.0,86144.0,0.00592]
[1766113835734,0.01820953,86162.0,86144.0,0.49702846]
[1766113835945,0.01820953,86162.0,86144.0,0.48542]
[1766113836157,0.01820953,86162.0,86144.0,0.00592]
[1766113836158,0.58455,86158.0,86144.0,0.00592]
[1766113836307,0.01820953,86162.0,86143.0,0.0004]
[1766113836308,0.58455,86154.0,86143.0,0.0004]
[1766113836731,0.01160671,86157.0,86133.0,0.0004]
[1766113836732,0.49234,86147.0,86133.0,0.0004]
[1766113836933,0.58455,86145.0,86133.0,0.0004]
[1766113837500,0.58455,86138.0,86125.0,0.00592]
[1766113837623,0.59616035,86130.0,86115.0,0.04648]
[1766113837821,0.58455,86130.0,86117.0,0.00592]
[1766113839029,0.00592,86137.0,86130.0,0.001099]
[1766113839233,0.58455,86148.0,86127.0,0.00592]
[1766113839234,0.00592,86142.0,86127.0,0.00592]
[1766113839832,0.49234,86138.0,86127.0,0.00592]
[1766113840032,0.58455,86137.0,86127.0,0.00592]
[1766113840355,0.49234,86140.0,86127.0,0.00592]
[1766113840961,0.00592,86142.0,86127.0,0.00592]
[1766113841196,1.07689,86141.0,86127.0,0.00592]
[1766113841395,0.00592,86142.0,86127.0,0.00592]
[1766113841595,0.0555032,86139.0,86115.0,0.000364]
[1766113841895,0.6400532,86139.0,86118.0,0.00592]
[1766113842117,0.49234,86137.0,86118.0,0.00592]
[1766113842256,0.58455,86136.0,86118.0,0.00592]
[1766113842458,0.00592,86136.0,86122.0,0.01161143]
[1766113842691,0.00592,86136.0,86120.0,0.72481564]
[1766113842900,0.0555032,86145.0,86126.0,0.72481564]
[1766113843103,0.0555032,86145.0,86119.0,0.01161183]
[1766113843104,0.49526,86144.0,86127.0,0.00592]
[1766113843305,0.49526,86144.0,86128.0,0.00592]
[1766113844365,0.00592,86148.0,86130.0,0.72481564]
[1766113844543,0.01160631,86160.0,86138.0,0.72481564]
[1766113844750,0.0907,86160.0,86139.0,0.00592]
[1766113844949,0.00592,86159.0,86139.0,0.00592]
[1766113845453,0.59729,86158.0,86139.0,0.00592]
[1766113845647,0.0555032,86151.0,86139.0,0.00592]
[1766113846177,0.00592,86159.0,86142.0,0.46728]
[1766113846354,0.01160537,86167.0,86143.0,0.46728]
[1766113846355,0.23803305,86165.0,86143.0,0.46728]
[1766113846557,0.0116059,86163.0,86143.0,0.46728]
[1766113846759,0.24963869,86165.0,86143.0,0.46728]
[1766113846760,0.01752564,86165.0,86143.0,0.46728]
[1766113847072,0.00592,86165.0,86144.0,0.59009]
[1766113847303,0.0555032,86166.0,86150.0,0.7364233]
[1766113847585,0.0555032,86166.0,86151.0,0.00592]
[1766113848036,0.59729,86191.0,86169.0,0.46728]
[1766113848242,0.017522,86192.0,86170.0,0.00592]
[1766113848441,0.00592,86192.0,86175.0,0.01160429]
[1766113848657,0.00592,86192.0,86170.0,0.73073564]
[1766113848890,0.59729,86189.0,86170.0,0.00592]
[1766113849095,0.59729,86188.0,86170.0,0.01752496]
[1766113849306,0.59729,86188.0,86170.0,0.00592]
[1766113850287,0.59729,86188.0,86170.0,0.73073564]
[1766113851150,0.00592,86192.0,86174.0,0.46728]
[1766113851407,0.69959106,86199.0,86178.0,0.72481564]
[1766113851408,0.69391,86199.0,86178.0,0.72481564]
[1766113851564,0.49526,86197.0,86179.0,0.00592]
[1766113851907,1.09255,86197.0,86179.0,0.00592]
[1766113853441,0.0555032,86192.0,86179.0,0.00592]
[1766113855003,0.0555032,86192.0,86170.0,0.72481564]
[1766113855004,0.59729,86191.0,86180.0,0.00592]
[1766113855250,0.59729,86190.0,86170.0,0.72481564]
[1766113855456,0.001099,86180.0,86164.0,0.04648]
[1766113855683,0.50686456,86173.0,86164.0,0.000364]
[1766113855860,0.50686456,86173.0,86164.0,4e-06]
[1766113855861,0.59729,86172.0,86164.0,4e-06]
[1766113856644,0.01160173,86194.0,86168.0,0.46728]
[1766113856851,0.0555032,86190.0,86170.0,1.19209564]
[1766113857048,0.01752187,86193.0,86170.0,0.7364206]
[1766113857049,0.0614232,86193.0,86170.0,0.7364206]
[1766113857270,0.0614232,86193.0,86173.0,0.01160456]
[1766113857271,0.6587132,86193.0,86173.0,0.01160456]
[1766113857471,0.6587132,86193.0,86174.0,0.00592]
[1766113857715,0.59729,86192.0,86174.0,0.00592]
[1766113857900,0.59729,86192.0,86180.0,0.72481564]
[1766113858311,0.00592,86193.0,86181.0,0.00592]
[1766113858703,0.00592,86196.0,86181.0,0.00592]
[1766113858910,0.49526,86200.0,86181.0,0.00592]
[1766113859075,0.01820455,86194.0,86181.0,0.00592]
[1766113859978,0.00592,86200.0,86182.0,0.47888335]
[1766113860157,0.00592,86200.0,86182.0,0.46728]
[1766113860751,0.001099,86182.0,86161.0,0.23211823]
[1766113860989,0.001099,86182.0,86170.0,0.72481564]
[1766113861402,0.01160092,86200.0,86170.0,0.72481564]
[1766113861578,0.49526,86189.0,86167.0,0.0907]
[1766113861786,0.59729,86190.0,86167.0,0.0907]
[1766113861787,0.49526,86190.0,86171.0,0.00592]
[1766113862006,0.59729,86195.0,86180.0,0.72481564]
[1766113862197,0.59729,86195.0,86180.0,0.73073564]
[1766113862351,0.0614232,86197.0,86180.0,0.73073564]
[1766113862555,0.0614232,86197.0,86180.0,0.74233926]
[1766113862755,0.0614232,86197.0,86180.0,0.73073564]
[1766113862956,0.5357232,86197.0,86180.0,0.00592]
[1766113863186,0.34796337,86216.0,86180.0,0.00592]
[1766113863187,0.01820155,86239.0,86196.0,0.05001839]
[1766113863368,0.01820155,86239.0,86195.0,0.0555032]
[1766113863369,0.02828,86238.0,86230.0,0.48232]
[1766113863551,0.01159312,86258.0,86231.0,0.0139161]
[1766113863929,0.0524,86257.0,86253.0,0.9999]
[1766113864136,0.00592,86256.0,86253.0,0.998801]
[1766113864306,0.00592,86256.0,86253.0,0.498801]
[1766113864537,0.00592,86256.0,86233.0,0.01159648]
[1766113864538,0.00628549,86256.0,86233.0,0.01159648]
[1766113864766,0.0555032,86250.0,86230.0,0.73641253]
[1766113865018,0.00592,86249.0,86232.0,0.23193246]
[1766113865204,0.00592,86249.0,86230.0,0.73641253]
[1766113865205,0.00592,86249.0,86237.0,0.01159595]
[1766113865432,0.00592,86249.0,86238.0,0.01159581]
[1766113865555,0.00592,86249.0,86239.0,0.01159568]
[1766113865765,0.00592,86249.0,86237.0,0.01159595]
[1766113865968,0.00592,86249.0,86236.0,0.24351708]
[1766113866174,0.5967,86255.0,86232.0,0.49391662]
[1766113866567,0.0555032,86251.0,86233.0,0.01159648]
[1766113866783,0.0555032,86251.0,86234.0,0.01159635]
[1766113867206,0.0555032,86251.0,86235.0,0.01159621]
[1766113867377,0.0555032,86251.0,86233.0,0.01159648]
[1766113867609,0.0555032,86251.0,86234.0,0.01159635]
[1766113868016,0.0555032,86251.0,86232.0,0.48232]
[1766113868563,0.0555032,86251.0,86232.0,0.49391662]
[1766113868764,0.0524,86250.0,86233.0,0.01159648]
[1766113869165,0.0524,86250.0,86234.0,0.01159635]
[1766113869368,0.0524,86250.0,86233.0,0.58461648]
[1766113869576,0.0524,86250.0,86234.0,0.01159635]
[1766113869772,0.0524,86250.0,86233.0,0.81654566]
[1766113869972,0.0524,86250.0,86233.0,0.58461648]
[1766113870312,0.00036549,86256.0,86237.0,0.57302]
[1766113870486,0.04648,86249.0,86237.0,0.57302]
[1766113870683,0.0555032,86251.0,86237.0,0.57302]
[1766113870903,0.0524,86250.0,86237.0,0.57302]
[1766113871313,0.0524,86250.0,86229.0,0.61318]
[1766113871510,0.0524,86250.0,86230.0,0.0907]
[1766113871690,0.06709901,86238.0,86212.0,0.01159931]
[1766113871888,0.5967,86236.0,86214.0,0.10229904]
[1766113872088,0.60829608,86236.0,86214.0,0.0907]
[1766113872313,0.60829608,86236.0,86211.0,0.72590716]
[1766113872314,0.5967,86234.0,86211.0,0.48232]
[1766113872522,0.04648,86233.0,86215.0,0.23197773]
[1766113872712,0.04648,86233.0,86217.0,0.01159864]
[1766113872939,0.04648,86233.0,86216.0,0.2435732]
[1766113873139,0.04648,86233.0,86217.0,0.01159864]
[1766113873299,0.04644,86232.0,86217.0,0.01159864]
[1766113873494,0.00592,86231.0,86217.0,0.01159864]
[1766113873923,0.00592,86231.0,86219.0,0.24356569]
[1766113874123,0.00592,86231.0,86214.0,0.0907]
[1766113874124,0.004821,86231.0,86224.0,0.01159769]
[1766113874343,0.01819409,86236.0,86224.0,0.01159769]
[1766113874531,0.05236,86235.0,86226.0,0.01159743]
[1766113874718,0.04644,86234.0,86225.0,0.24354868]
[1766113875050,0.24348154,86249.0,86224.0,0.01159769]
[1766113875210,0.05236,86248.0,86225.0,0.24354842]
[1766113875415,0.05236,86248.0,86227.0,0.0907]
[1766113875599,0.60218,86250.0,86227.0,0.0907]
[1766113875805,0.60218,86250.0,86227.0,0.10229729]
[1766113876043,0.05236,86249.0,86227.0,0.10229729]
[1766113876301,0.05236,86248.0,86230.0,1.29329564]
[1766113876571,0.05236,86248.0,86224.0,0.49497]
[1766113876572,0.06395447,86248.0,86225.0,0.58567]
[1766113877066,0.66613447,86248.0,86225.0,0.58567]
[1766113877281,0.65454,86248.0,86226.0,0.01159743]
[1766113877453,0.65454,86248.0,86225.0,0.82921825]
[1766113877454,0.0115946,86247.0,86225.0,0.58567]
[1766113877653,0.24348679,86247.0,86225.0,0.58567]
[1766113878018,0.0115946,86247.0,86225.0,0.58567]
[1766113878273,0.0555032,86236.0,86218.0,0.0907]
[1766113878497,0.00592,86235.0,86222.0,0.01159796]
[1766113878641,0.00592,86235.0,86218.0,0.0907]
[1766113878841,0.00592,86235.0,86221.0,0.0115981]
[1766113879279,0.001099,86221.0,86217.0,0.0907]
[1766113879444,0.05232,86220.0,86217.0,0.0907]
[1766113880265,0.05232,86220.0,86215.0,0.0907]
[1766113880503,0.05268526,86220.0,86215.0,0.0907]
[1766113881290,0.05268526,86220.0,86214.0,0.0907]
[1766113881924,0.01159487,86245.0,86221.0,0.49497]
[1766113882130,0.01159541,86241.0,86221.0,0.49497]
[1766113882337,0.60736,86240.0,86218.0,0.23196877]
[1766113882559,0.6576832,86236.0,86215.0,0.0907]
[1766113882752,0.6576832,86236.0,86215.0,0.1022989]
[1766113882978,0.6576832,86236.0,86215.0,0.0907]
[1766113883333,0.05232,86239.0,86215.0,0.0907]
[1766113883538,0.01813561,86256.0,86239.0,0.58007568]
[1766113883735,0.01159232,86264.0,86240.0,0.10461465]
[1766113883736,0.05232,86255.0,86240.0,0.10461465]
[1766113883994,0.05232,86255.0,86243.0,0.10229514]
[1766113884202,0.0555032,86260.0,86243.0,0.0907]
[1766113884377,0.04644,86254.0,86243.0,0.0907]
[1766113884983,0.60218,86246.0,86226.0,0.01159743]
[1766113885141,0.00588,86245.0,86226.0,0.01170694]
[1766113885323,0.00588,86245.0,86227.0,0.01159729]
[1766113885528,0.00588,86245.0,86228.0,0.01159716]
[1766113885765,0.00588,86245.0,86226.0,0.01170694]
[1766113885923,0.00588,86245.0,86227.0,0.01159729]
[1766113886129,0.00588,86245.0,86226.0,0.00010951]
[1766113886422,0.00588,86245.0,86230.0,0.01159689]
[1766113886645,0.00588,86245.0,86229.0,0.01159702]
[1766113886856,0.04644,86254.0,86226.0,0.00010951]
[1766113887061,0.00139999,86280.0,86262.0,0.01159259]
[1766113887062,0.04644,86271.0,86262.0,0.01159259]
[1766113887279,0.04644,86271.0,86266.0,0.01159205]
[1766113887280,0.00588,86269.0,86266.0,0.01159205]
[1766113887483,0.00588,86269.0,86267.0,0.23183836]
[1766113887688,0.04644,86276.0,86275.0,0.01159084]
[1766113887898,0.05232,86276.0,86261.0,0.32255204]
[1766113888131,0.05232,86276.0,86264.0,0.01159232]
[1766113888378,0.05232,86276.0,86263.0,0.01159245]
[1766113888379,0.0524299,86276.0,86263.0,0.01159245]
[1766113888783,0.0524299,86276.0,86262.0,0.0907]
[1766113888784,0.0524299,86276.0,86262.0,0.10229259]
[1766113888964,0.0524299,86276.0,86262.0,0.0907]
[1766113889422,0.0524299,86276.0,86261.0,0.0907]
[1766113889624,0.0524299,86276.0,86261.0,0.10229272]
[1766113890337,0.0524299,86276.0,86264.0,0.01159232]
[1766113890546,0.0524299,86276.0,86263.0,0.01159245]
[1766113890754,0.0524299,86276.0,86261.0,0.0907]
[1766113890955,0.05232,86275.0,86261.0,0.0907]
[1766113891156,0.00588,86274.0,86261.0,0.0908099]
[1766113891674,0.00588,86274.0,86261.0,0.10240262]
[1766113891895,0.00588,86274.0,86262.0,0.01159259]
[1766113892141,0.004781,86274.0,86262.0,0.02447695]
[1766113892583,0.001099,86262.0,86261.0,0.0908099]
[1766113892749,0.006979,86262.0,86246.0,0.24348794]
[1766113892961,0.006979,86262.0,86247.0,0.03607851]
[1766113893165,0.00588,86262.0,86248.0,0.02448391]
[1766113893368,0.00588,86262.0,86249.0,0.02448391]
[1766113893673,0.00588,86262.0,86248.0,0.02448391]
[1766113894071,0.00588,86262.0,86249.0,0.01159433]
[1766113894681,0.24334648,86297.0,86271.0,0.01159138]
[1766113894879,0.05232,86277.0,86272.0,0.01159124]
[1766113895231,0.05232,86277.0,86268.0,1.63094728]
[1766113895232,0.04644,86285.0,86280.0,0.01159017]
[1766113895477,0.00588,86284.0,86280.0,0.10229017]
[1766113895690,0.04644,86294.0,86289.0,0.01158896]
[1766113895891,0.00588,86293.0,86291.0,0.01158869]
[1766113896110,0.04644,86303.0,86289.0,0.49497]
[1766113896111,0.00588,86292.0,86289.0,0.49497]
[1766113896311,0.00588,86292.0,86289.0,0.50655896]
[1766113896847,0.0555032,86312.0,86293.0,0.01158842]
[1766113897076,0.00588,86311.0,86293.0,0.00010988]
[1766113897270,0.00588,86311.0,86294.0,0.01158829]
[1766113897620,0.00588,86311.0,86296.0,0.01158802]
[1766113897751,0.00588,86311.0,86295.0,0.24335042]
[1766113897950,0.00588,86310.0,86295.0,0.01158815]
[1766113898237,0.0555032,86339.0,86316.0,0.01158533]
[1766113898439,0.0555032,86339.0,86319.0,0.49497]
[1766113898652,0.00588,86338.0,86326.0,0.23167991]
[1766113898859,0.00588,86338.0,86328.0,0.49497]
[1766113899065,0.0004,86340.0,86328.0,0.49497]
[1766113899066,0.00588,86339.0,86329.0,0.01390031]
[1766113899309,0.0004,86340.0,86335.0,0.01158278]
[1766113899528,1.06394,86361.0,86338.0,0.01158238]
[1766113899737,0.0555032,86369.0,86349.0,0.01158091]
[1766113899939,0.0555032,86369.0,86339.0,0.0138987]
[1766113899940,0.04644,86382.0,86359.0,0.49497]
[1766113900143,0.00588,86381.0,86364.0,0.50654889]
[1766113900349,0.04644,86384.0,86365.0,0.01157876]
[1766113900554,0.04644,86384.0,86366.0,0.49497]
[1766113900555,0.00588,86380.0,86366.0,0.49497]
[1766113900736,0.00588,86380.0,86368.0,1.0628672]
[1766113900893,0.001099,86366.0,86359.0,0.00010989]
[1766113901104,0.00588,86365.0,86359.0,0.00010989]
[1766113901488,0.00588,86365.0,86354.0,0.01158023]
[1766113901688,0.00588,86364.0,86356.0,0.01157997]
[1766113902065,0.00588,86366.0,86353.0,0.80008629]
[1766113902192,0.00588,86366.0,86355.0,0.0115801]
[1766113902397,1.08399,86394.0,86355.0,0.2316021]
[1766113902709,1.08399,86394.0,86353.0,0.00010973]
[1766113902710,0.05228,86393.0,86377.0,0.01157715]
[1766113902894,0.5752,86407.0,86383.0,0.62215]
[1766113903099,0.0464,86413.0,86390.0,1.29397452]
[1766113903320,0.00588,86410.0,86396.0,0.0115746]
[1766113903520,0.00588,86410.0,86391.0,1.11688]
[1766113903739,0.58108,86410.0,86390.0,0.00588]
[1766113904116,0.00022639,86405.0,86399.0,0.0115742]
[1766113904318,0.00588,86410.0,86405.0,0.000226]
[1766113904540,0.11113426,86408.0,86392.0,0.01157514]
[1766113904765,0.11113426,86408.0,86392.0,0.00010979]
[1766113904960,0.11113426,86406.0,86392.0,0.00010979]
[1766113905319,0.00588,86410.0,86392.0,0.00010979]
[1766113905522,0.11113426,86408.0,86392.0,0.00010979]
[1766113905924,0.11113426,86395.0,86377.0,0.0907]
[1766113906146,0.01745487,86394.0,86377.0,0.0907]
[1766113906489,0.01745487,86394.0,86360.0,0.62215]
[1766113906490,0.12271074,86382.0,86360.0,0.62215]
[1766113906613,0.00588,86381.0,86364.0,0.00588]
[1766113907200,0.00588,86381.0,86354.0,0.00588]
[1766113907201,0.11113426,86369.0,86354.0,0.00588]
[1766113907404,0.00588,86368.0,86349.0,0.62215]
[1766113907580,0.05558225,86364.0,86349.0,0.62215]
[1766113908184,0.05558225,86364.0,86349.0,0.63373091]
[1766113908518,0.05558225,86364.0,86349.0,0.62225973]
[1766113909090,0.00588,86368.0,86349.0,0.62225973]